fUSD/lending_fUSD_20260116
["ID","MTS","AMOUNT","RATE_DAILY","PERIOD"]
[402209785,1768605041906,-151.0,0.00014092,2]
[402209786,1768605041915,-500.0,0.00014092,2]
[402209787,1768605041924,-151.0,0.00014092,2]
[402209788,1768605041933,-151.0,0.00014092,2]
[402209789,1768605041942,-151.0,0.00014092,2]
[402209790,1768605041952,-151.0,0.00014092,2]
[402209791,1768605041961,-151.0,0.00014092,2]
[402209792,1768605041971,-151.0,0.00014092,2]
[402209793,1768605041979,-151.0,0.00014092,2]
[402209794,1768605041989,-190.25340897,0.00014092,2]
[402209795,1768605041998,-151.0,0.00014092,2]
[402209796,1768605042007,-151.0,0.00014092,2]
[402209797,1768605042016,-151.0,0.00014092,2]
[402209798,1768605042025,-151.0,0.00014092,2]
[402209799,1768605042034,-151.0,0.00014092,2]
[402209800,1768605042043,-151.0,0.00014092,2]
[402209801,1768605042052,-151.0,0.00014092,2]
[402209802,1768605042061,-151.0,0.00014092,2]
[402209803,1768605042071,-151.0,0.00014092,2]
[402209804,1768605042080,-151.0,0.00014092,2]
[402209805,1768605042089,-151.0,0.00014092,2]
[402209806,1768605042099,-3891.483,0.00014092,2]
[402209807,1768605042108,-237.068,0.00014092,2]
[402209808,1768605042117,-500.0,0.00014099,2]
[402209809,1768605042127,-500.0,0.00014099,2]
[402209810,1768605042137,-500.0,0.00014099,2]
[402209811,1768605042146,-574.96731124,0.00014099,2]
[402209812,1768605042156,-4699.22,0.00014117,2]
[402209813,1768605042164,-848.2652921,0.00014127,2]
[402209814,1768605042174,-1600.0,0.00014221,2]
[402209815,1768605042183,-6152.07486229,0.00014253,2]
[402209816,1768605042194,-517.36,0.00014271,2]
[402209817,1768605042203,-166.66,0.00014305,2]
[402209818,1768605042213,-198895.25,0.00014331,2]
[402209819,1768605042223,-2927.16,0.00014384,2]
[402209820,1768605042233,-3394.838176,0.00014448,2]
[402209821,1768605042243,-1000.0,0.00014462,2]
[402209822,1768605042252,-33212.9972,0.00014462,2]
[402209823,1768605042262,-517.36,0.00014545,2]
[402209824,1768605042271,-157.79,0.00014631,2]
[402209825,1768605042280,-404.16750346,0.00014664,2]
[402209826,1768605042290,-848.26529208,0.00014666,2]
[402209827,1768605042299,-6152.07486229,0.00014709,2]
[402209828,1768605042308,-517.36,0.00014819,2]
[402209829,1768605042318,-3394.838176,0.0001488,2]
[402209830,1768605042327,-255.0,0.00014964,2]
[402209831,1768605042336,-162.73457623,0.00015008,2]
[402209832,1768605042345,-2927.16,0.00015068,2]
[402209833,1768605042354,-517.4084186,0.00015093,2]
[402209834,1768605042364,-6152.07486229,0.00015165,2]
[402209835,1768605042373,-420.0,0.00015168,2]
[402209836,1768605042382,-420.0,0.00015168,2]
[402209837,1768605042391,-848.26529208,0.00015205,2]
[402209838,1768605042400,-1680.0,0.00015227,2]
[402209839,1768605042409,-300.0,0.00015227,2]
[402209840,1768605042418,-262.89208152,0.00015228,2]
[402209841,1768605042427,-250.0,0.00015228,2]
[402209842,1768605042436,-298.75,0.00015251,2]
[402209843,1768605042445,-404.16750346,0.00015311,2]
[402209844,1768605042454,-3394.838176,0.00015311,2]
[402209845,1768605042463,-150.0,0.00015312,2]
[402209846,1768605042472,-500.0,0.00015312,2]
[402209847,1768605042481,-500.0,0.00015312,2]
[402209848,1768605042491,-500.0,0.00015312,2]
[402209849,1768605042500,-500.0,0.00015312,2]
[402209850,1768605042509,-185.522,0.00015312,2]
[402209851,1768605042518,-500.0,0.00015312,2]
[402209852,1768605042527,-150.0,0.00015312,2]
[402209853,1768605042536,-150.0,0.00015367,2]
[402209854,1768605042547,-500.0,0.00015367,2]
[402209855,1768605042558,-501.25650865,0.00015367,2]
[402209856,1768605042572,-500.0,0.00015367,2]
[402209857,1768605042592,-500.0,0.00015367,2]
[402209858,1768605042613,-500.0,0.00015367,2]
[402209859,1768605042629,-219.01911395,0.00015367,2]
[402209860,1768605042640,-200.0,0.00015422,2]
[402209861,1768605042651,-500.0,0.00015422,2]
[402209862,1768605042660,-500.0,0.00015422,2]
[402209863,1768605042671,-500.0,0.00015422,2]
[402209864,1768605042680,-500.0,0.00015422,2]
[402209865,1768605042692,-500.0,0.00015476,2]
[402209866,1768605042703,-500.0,0.00015476,2]
[402209867,1768605042714,-500.0,0.00015476,2]
[402209868,1768605042724,-500.0,0.00015476,2]
[402209869,1768605042733,-500.0,0.00015507,2]
[402209870,1768605042742,-499.99535401,0.00015531,2]
[402209871,1768605042752,-500.0,0.00015531,2]
[402209872,1768605042761,-500.0,0.00015531,2]
[402209873,1768605042770,-500.0,0.00015531,2]
[402209874,1768605042940,-500.0,0.00015586,2]
[402209875,1768605042963,-643.01588719,0.00015586,2]
[402209876,1768605042973,-500.0,0.00015586,2]
[402209877,1768605042983,-6152.07486229,0.00015621,2]
[402209878,1768605042994,-500.0,0.00015641,2]
[402209879,1768605043003,-500.0,0.00015641,2]
[402209880,1768605043016,-500.0,0.00015696,2]
[402209881,1768605043027,-500.0,0.00015696,2]
[402209882,1768605043037,-3394.838176,0.00015743,2]
[402209883,1768605043047,-848.26529208,0.00015744,2]
[402209884,1768605043056,-500.0,0.0001575,2]
[402209885,1768605043067,-500.0,0.0001575,2]
[402209886,1768605043076,-2927.16,0.00015753,2]
[402209887,1768605043086,-500.0,0.00015805,2]
[402209888,1768605043095,-500.0,0.00015805,2]
[402209889,1768605043106,-152.0,0.0001586,2]
[402209890,1768605043116,-500.0,0.0001586,2]
[402209891,1768605043128,-500.0,0.00015913,2]
[402209892,1768605043139,-500.0,0.00015915,2]
[402209893,1768605043149,-404.16750346,0.00015959,2]
[402209894,1768605043159,-377.0,0.0001597,2]
[402209895,1768605043169,-1600.0,0.00015999,2]
[402209896,1768605043181,-500.0,0.00016027,2]
[402209897,1768605043190,-6152.07486229,0.00016076,2]
[402209898,1768605043201,-3394.838176,0.00016174,2]
[402209899,1768605043212,-433.0,0.00016182,2]
[402209900,1768605043222,-162.73457623,0.00016218,2]
[402209901,1768605043232,-157.79,0.00016257,2]
[402209902,1768605043242,-848.26529208,0.00016283,2]
[402209903,1768605043252,-362.85687339,0.00016304,2]
[402209904,1768605043261,-566.80876335,0.00016308,2]
[402209905,1768605043272,-187.326885,0.00016315,2]
[402209906,1768605043282,-322.6107,0.00016318,2]
[402209907,1768605043291,-174.61919141,0.00016318,2]
[402209910,1768605043301,-151.0,0.00016318,2]
[402209911,1768605043311,-574.12855637,0.00016318,2]
[402209912,1768605043320,-721.12765535,0.00016318,2]
[402209913,1768605043330,-500.0,0.00016318,2]
[402209914,1768605043339,-500.0,0.00016318,2]
[402209915,1768605043349,-500.0,0.00016318,2]
[402209916,1768605043358,-278.08712803,0.00016318,2]
[402209917,1768605043368,-958.82692039,0.00016318,2]
[402209918,1768605043378,-500.0,0.00016318,2]
[402209919,1768605043388,-500.0,0.00016318,2]
[402209920,1768605043398,-500.0,0.00016318,2]
[402209921,1768605043408,-209.40437684,0.00016318,2]
[402209922,1768605043417,-500.0,0.00016318,2]
[402209923,1768605043426,-500.0,0.00016318,2]
[402209924,1768605043436,-500.0,0.00016318,2]
[402209925,1768605043445,-500.0,0.00016318,2]
[402209926,1768605043454,-500.0,0.00016318,2]
[402209927,1768605043463,-500.0,0.00016318,2]
[402209928,1768605043472,-500.0,0.00016318,2]
[402209929,1768605043486,-1239.0,0.00016318,2]
[402209930,1768605043506,-500.0,0.00016318,2]
[402209931,1768605043524,-500.0,0.00016318,2]
[402209932,1768605043533,-500.0,0.00016318,2]
[402209933,1768605043542,-500.0,0.00016318,2]
[402209934,1768605043551,-500.0,0.00016318,2]
[402209935,1768605043560,-500.0,0.00016318,2]
[402209936,1768605043569,-500.0,0.00016318,2]
[402209937,1768605043578,-500.0,0.00016318,2]
[402209938,1768605043591,-500.0,0.00016318,2]
[402209939,1768605043600,-500.0,0.00016318,2]
[402209940,1768605043609,-500.0,0.00016318,2]
[402209941,1768605043618,-500.0,0.00016318,2]
[402209942,1768605043628,-500.0,0.00016318,2]
[402209943,1768605043637,-500.0,0.00016318,2]
[402209944,1768605043646,-500.0,0.00016318,2]
[402209945,1768605043656,-500.0,0.00016318,2]
[402209946,1768605043665,-500.0,0.00016318,2]
[402209947,1768605043674,-250.0,0.00016318,2]
[402209948,1768605043683,-500.0,0.00016318,2]
[402209949,1768605043693,-500.0,0.00016318,2]
[402209951,1768605043702,-9000.0,0.00016318,2]
[402209953,1768605043712,-500.0,0.00016318,2]
[402209954,1768605043723,-620.0,0.00016318,2]
[402209955,1768605043733,-9000.0,0.00016318,2]
[402209956,1768605043744,-500.0,0.00016318,2]
[402209957,1768605043755,-578.20924308,0.00016318,2]
[402209958,1768605043764,-3000.0,0.00016318,2]
[402209959,1768605043773,-9000.0,0.00016318,2]
[402209960,1768605043782,-500.0,0.00016318,2]
[402209961,1768605043792,-3000.0,0.00016318,2]
[402209962,1768605043802,-9000.0,0.00016318,2]
[402209963,1768605043811,-3000.0,0.00016318,2]
[402209964,1768605043820,-9000.0,0.00016318,2]
[402209965,1768605043829,-9000.0,0.00016318,2]
[402209966,1768605043839,-9000.0,0.00016318,2]
[402209967,1768605043847,-9000.0,0.00016318,2]
[402209968,1768605043857,-9000.0,0.00016318,2]
[402209969,1768605043867,-9000.0,0.00016318,2]
[402209970,1768605043876,-2000.0,0.00016318,2]
[402209971,1768605043886,-2000.0,0.00016318,2]
[402209972,1768605043895,-1000.0,0.00016318,2]
[402209973,1768605043904,-250.0,0.00016318,2]
[402209974,1768605043914,-2000.0,0.00016318,2]
[402209975,1768605043923,-250.0,0.00016318,2]
[402209976,1768605043934,-2000.0,0.00016318,2]
[402209977,1768605043943,-250.0,0.00016318,2]
[402209978,1768605043953,-2000.0,0.00016318,2]
[402209979,1768605043962,-2000.0,0.00016318,2]
[402209980,1768605043972,-2000.0,0.00016318,2]
[402209981,1768605043981,-2000.0,0.00016318,2]
[402209982,1768605043991,-2000.0,0.00016318,2]
[402209983,1768605044000,-250.0,0.00016318,2]
[402209984,1768605044010,-2000.0,0.00016318,2]
[402209985,1768605044019,-250.0,0.00016318,2]
[402209986,1768605044028,-2000.0,0.00016318,2]
[402209987,1768605044037,-250.0,0.00016318,2]
[402209988,1768605044048,-250.0,0.00016318,2]
[402209989,1768605044060,-250.0,0.00016318,2]
[402209990,1768605044070,-250.0,0.00016318,2]
[402209991,1768605044079,-250.0,0.00016318,2]
[402209992,1768605044088,-250.0,0.00016318,2]
[402209993,1768605044098,-250.0,0.00016318,2]
[402209994,1768605044107,-250.0,0.00016318,2]
[402209995,1768605044117,-250.0,0.00016318,2]
[402209996,1768605044125,-1000.0,0.00016318,2]
[402209997,1768605044135,-1000.0,0.00016318,2]
[402209998,1768605044144,-1000.0,0.00016318,2]
[402209999,1768605044153,-1000.0,0.00016318,2]
[402210000,1768605044162,-1000.0,0.00016318,2]
[402210001,1768605044171,-1000.0,0.00016318,2]
[402210002,1768605044180,-1000.0,0.00016318,2]
[402210003,1768605044190,-1000.0,0.00016318,2]
[402210004,1768605044199,-1000.0,0.00016318,2]
[402210005,1768605044208,-1000.0,0.00016318,2]
[402210006,1768605044218,-1000.0,0.00016318,2]
[402210007,1768605044227,-342.66,0.0001634,2]
[402210008,1768605044236,-1500.0,0.00016356,2]
[402210009,1768605044245,-500.0,0.00016356,2]
[402210010,1768605044254,-600.0,0.00016356,2]
[402210011,1768605044263,-9000.0,0.00016373,2]
[402210012,1768605044272,-163.0,0.000164,2]
[402210013,1768605044281,-9000.0,0.00016428,2]
[402210014,1768605044290,-500.0,0.00016438,2]
[402210015,1768605044300,-500.0,0.00016438,2]
[402210016,1768605044309,-500.0,0.00016438,2]
[402210017,1768605044318,-500.0,0.00016438,2]
[402210018,1768605044327,-500.0,0.00016438,2]
[402210019,1768605044336,-500.0,0.00016438,2]
[402210020,1768605044350,-500.0,0.00016438,2]
[402210021,1768605044360,-500.0,0.00016438,2]
[402210022,1768605044369,-500.0,0.00016438,2]
[402210023,1768605044378,-463.13442003,0.00016438,2]
[402210024,1768605044388,-500.0,0.00016438,2]
[402210025,1768605044397,-500.0,0.00016438,2]
[402210026,1768605044407,-500.0,0.00016438,2]
[402210027,1768605044416,-500.0,0.00016438,2]
[402210028,1768605044425,-500.0,0.00016438,2]
[402210029,1768605044435,-500.0,0.00016438,2]
[402210030,1768605044444,-500.0,0.00016438,2]
[402210031,1768605044453,-500.0,0.00016438,2]
[402210032,1768605044463,-500.0,0.00016438,2]
[402210033,1768605044472,-500.0,0.00016438,2]
[402210034,1768605044481,-500.0,0.00016438,2]
[402210035,1768605044490,-500.0,0.00016438,2]
[402210036,1768605044499,-500.0,0.00016438,2]
[402210037,1768605044509,-500.0,0.00016438,2]
[402210038,1768605044519,-500.0,0.00016438,2]
[402210039,1768605044528,-500.0,0.00016438,2]
[402210040,1768605044537,-500.0,0.00016438,2]
[402210041,1768605044546,-500.0,0.00016438,2]
[402210042,1768605044556,-500.0,0.00016438,2]
[402210043,1768605044565,-500.0,0.00016438,2]
[402210044,1768605044574,-500.0,0.00016438,2]
[402210045,1768605044585,-500.0,0.00016438,2]
[402210046,1768605044594,-500.0,0.00016438,2]
[402210047,1768605044603,-500.0,0.00016438,2]
[402210048,1768605044612,-500.0,0.00016438,2]
[402210049,1768605044622,-500.0,0.00016438,2]
[402210050,1768605044631,-500.0,0.00016438,2]
[402210051,1768605044640,-500.0,0.00016438,2]
[402210052,1768605044650,-500.0,0.00016438,2]
[402210053,1768605044662,-500.0,0.00016438,2]
[402210054,1768605044670,-500.0,0.00016438,2]
[402210055,1768605044679,-500.0,0.00016438,2]
[402210056,1768605044688,-500.0,0.00016438,2]
[402210057,1768605044697,-500.0,0.00016438,2]
[402210058,1768605044706,-500.0,0.00016438,2]
[402210059,1768605044715,-500.0,0.00016438,2]
[402210060,1768605044724,-500.0,0.00016438,2]
[402210061,1768605044735,-500.0,0.00016438,2]
[402210062,1768605044747,-500.0,0.00016438,2]
[402210063,1768605044757,-500.0,0.00016438,2]
[402210064,1768605044768,-500.0,0.00016438,2]
[402210065,1768605044778,-500.0,0.00016438,2]
[402210066,1768605044787,-500.0,0.00016438,2]
[402210067,1768605044797,-500.0,0.00016438,2]
[402210068,1768605044806,-162.57049112,0.00016438,2]
[402210069,1768605044815,-500.0,0.00016438,2]
[402210070,1768605044824,-500.0,0.00016438,2]
[402210071,1768605044833,-500.0,0.00016438,2]
[402210072,1768605044842,-500.0,0.00016438,2]
[402210073,1768605044851,-500.0,0.00016438,2]
[402210074,1768605044860,-449.99999999,0.00016438,2]
[402210075,1768605044869,-500.0,0.00016438,2]
[402210076,1768605044878,-500.0,0.00016438,2]
[402210077,1768605044888,-500.0,0.00016438,2]
[402210078,1768605044898,-500.0,0.00016438,2]
[402210079,1768605044907,-500.0,0.00016438,2]
[402210080,1768605044916,-500.0,0.00016438,2]
[402210081,1768605044926,-500.0,0.00016438,2]
[402210082,1768605044936,-500.0,0.00016438,2]
[402210083,1768605044945,-500.0,0.00016438,2]
[402210084,1768605044954,-500.0,0.00016438,2]
[402210085,1768605044963,-500.0,0.00016438,2]
[402210086,1768605044972,-500.0,0.00016438,2]
[402210087,1768605044981,-500.0,0.00016438,2]
[402210088,1768605044991,-500.0,0.00016438,2]
[402210089,1768605045002,-2927.16,0.00016438,2]
[402210090,1768605045013,-9000.0,0.00016483,2]
[402210091,1768605045023,-500.0,0.00016493,2]
[402210092,1768605045032,-6152.07486229,0.00016532,2]
[402210093,1768605045041,-9000.0,0.00016538,2]
[402210094,1768605045050,-13551.0,0.00016542,2]
[402210095,1768605045059,-500.0,0.00016548,2]
[402210096,1768605045068,-500.0,0.00016575,2]
[402210097,1768605045078,-9000.0,0.00016593,2]
[402210098,1768605045087,-500.0,0.00016602,2]
[402210099,1768605045096,-404.16750346,0.00016606,2]
[402210100,1768605045105,-3394.838176,0.00016606,2]
[402210101,1768605045114,-587.0,0.0001662,2]
[402210102,1768605045124,-587.0,0.0001662,2]
[402210103,1768605045133,-9000.0,0.00016648,2]
[402210104,1768605045142,-500.0,0.00016657,2]
[402210105,1768605045151,-3240.0,0.00016661,2]
[402210106,1768605045160,-9000.0,0.00016703,2]
[402210107,1768605045170,-500.0,0.00016712,2]
[402210108,1768605045179,-2351.0,0.0001675,2]
[402210109,1768605045189,-9000.0,0.00016758,2]
[402210110,1768605045198,-500.0,0.00016767,2]
[402210111,1768605045207,-500.0,0.00016822,2]
[402210112,1768605045216,-848.26529208,0.00016822,2]
[402210113,1768605045226,-181.08010149,0.00016866,2]
[402210114,1768605045235,-151.0,0.00016866,2]
[402210115,1768605045245,-595.37131296,0.00016866,2]
[402210116,1768605045255,-330.28989388,0.00016866,2]
[402210117,1768605045265,-5003.03273076,0.00016867,2]
[402210118,1768605045274,-5000.0,0.00016867,2]
[402210119,1768605045283,-5000.0,0.00016867,2]
[402210120,1768605045293,-5000.0,0.00016867,2]
[402210121,1768605045302,-5000.0,0.00016867,2]
[402210122,1768605045311,-500.0,0.00016876,2]
[402210123,1768605045321,-500.0,0.00016931,2]
[402210124,1768605045330,-207.59580068,0.00016938,2]
[402210125,1768605045339,-500.0,0.00016938,2]
[402210126,1768605045349,-500.0,0.00016986,2]
[402210127,1768605045358,-6152.07486229,0.00016988,2]
[402210128,1768605045367,-1733.2975304,0.00016998,2]
[402210129,1768605045376,-3394.838176,0.00017037,2]
[402210130,1768605045385,-500.0,0.00017041,2]
[402210131,1768605045395,-294.0,0.00017082,2]
[402210132,1768605045568,-540.0,0.00017096,2]
[402210133,1768605045577,-298.75,0.00017104,2]
[402210134,1768605045591,-150.0,0.00017129,2]
[402210135,1768605045600,-155.53654206,0.00017194,2]
[402210136,1768605045609,-404.16750346,0.00017253,2]
[402210137,1768605045619,-502.0,0.0001726,2]
[402210138,1768605045630,-375.0,0.0001727,2]
[402210139,1768605045639,-1933.0,0.00017303,2]
[402210140,1768605045648,-1933.0,0.00017321,2]
[402210141,1768605045660,-848.26529208,0.00017361,2]
[402210142,1768605045670,-5854.0,0.00017367,2]
[402210143,1768605045679,-1933.0,0.00017378,2]
[402210144,1768605045688,-1000.0,0.000174,2]
[402210145,1768605045697,-6500.0,0.000174,6]
[402210146,1768605045707,-187.78006525,0.00017414,2]
[402210147,1768605045716,-151.0,0.00017414,2]
[402210148,1768605045725,-617.40005154,0.00017414,2]
[402210149,1768605045735,-1000.0,0.00017424,2]
[402210150,1768605045744,-6152.07486229,0.00017444,2]
[402210151,1768605045754,-313.04,0.00017451,2]
[402210152,1768605045764,-421.04265284,0.00017454,2]
[402210153,1768605045773,-3394.838176,0.00017469,2]
[402210154,1768605045783,-736.0,0.00017484,2]
[402210155,1768605045792,-168.0,0.00017492,2]
[402210156,1768605045802,-2000.0,0.000175,2]
[402210157,1768605045811,-8600.0,0.000175,6]
[402210158,1768605045820,-313.03950746,0.00017502,2]
[402210159,1768605045830,-1852.42,0.0001754,2]
[402210160,1768605045839,-298.75,0.00017552,2]
[402210161,1768605045849,-200.0,0.00017556,2]
[402210162,1768605045858,-168.0,0.00017557,2]
[402210163,1768605045868,-5162.3,0.00017563,2]
[402210164,1768605045878,-168.0,0.00017568,2]
[402210165,1768605045887,-165.03,0.00017583,2]
[402210166,1768605045898,-1268.0,0.00017593,2]
[402210167,1768605045908,-412.0,0.00017593,2]
[402210168,1768605045917,-1202.0,0.00017593,2]
[402210169,1768605045928,-915.0,0.00017593,2]
[402210170,1768605045938,-2439.0,0.00017594,2]
[402210171,1768605045949,-6559.0,0.00017594,2]
[402210172,1768605045961,-4824.0,0.00017594,2]
[402210173,1768605045971,-1000.0,0.000176,2]
[402210174,1768605045981,-10800.0,0.000176,6]
[402210175,1768605045990,-5162.3,0.00017603,2]
[402210176,1768605046000,-150.0,0.00017614,2]
[402210177,1768605046011,-168.0,0.00017632,2]
[402210178,1768605046021,-5162.3,0.00017642,2]
[402210179,1768605046031,-1933.0,0.0001766,2]
[402210180,1768605046040,-163.0,0.0001768,2]
[402210181,1768605046050,-5162.3,0.00017682,2]
[402210182,1768605046060,-334.5472959,0.00017687,2]
[402210183,1768605046069,-1239.0,0.00017687,2]
[402210184,1768605046079,-642.94,0.00017687,2]
[402210185,1768605046088,-150.0,0.00017693,2]
[402210186,1768605046098,-1000.0,0.00017698,2]
[402210187,1768605046107,-2100.0,0.000177,6]
[402210188,1768605046117,-189.77249293,0.0001772,2]
[402210189,1768605046127,-5162.3,0.00017722,2]
[402210190,1768605046136,-150.0,0.00017725,2]
[402210191,1768605046146,-1500.0,0.00017726,7]
[402210192,1768605046157,-600.0,0.00017726,7]
[402210193,1768605046167,-1000.0,0.0001773,2]
[402210194,1768605046176,-1000.0,0.00017737,2]
[402210195,1768605046187,-1000.0,0.00017738,2]
[402210196,1768605046197,-1000.0,0.00017744,2]
[402210197,1768605046208,-1000.0,0.0001775,2]
[402210198,1768605046217,-5162.3,0.00017762,2]
[402210199,1768605046228,-1000.0,0.00017763,2]
[402210200,1768605046237,-1000.0,0.00017766,2]
[402210201,1768605046247,-155.53654206,0.00017767,2]
[402210202,1768605046256,-1600.0,0.00017776,2]
[402210203,1768605046265,-168.0,0.00017777,2]
[402210204,1768605046274,-1000.0,0.0001778,2]
[402210205,1768605046283,-1000.0,0.00017781,2]
[402210206,1768605046293,-150.0,0.00017794,2]
[402210207,1768605046302,-2100.0,0.000178,6]
[402210208,1768605046312,-5162.3,0.00017801,2]
[402210209,1768605046322,-957.58502982,0.00017804,7]
[402210210,1768605046332,-1689.29349879,0.00017804,7]
[402210211,1768605046342,-2527.08204418,0.00017804,7]
[402210212,1768605046351,-3419.2224,0.00017804,7]
[402210213,1768605046361,-500.0,0.00017808,2]
[402210214,1768605046370,-440.0,0.00017808,2]
[402210215,1768605046379,-1000.0,0.00017816,2]
[402210216,1768605046388,-150.0,0.00017817,2]
[402210217,1768605046397,-2000.0,0.0001782,2]
[402210218,1768605046407,-2000.0,0.0001782,2]
[402210219,1768605046416,-1000.0,0.0001783,2]
[402210220,1768605046425,-2000.0,0.0001783,2]
[402210221,1768605046435,-1000.0,0.00017835,2]
[402210222,1768605046444,-1000.0,0.00017836,2]
[402210223,1768605046452,-1000.0,0.0001784,2]
[402210224,1768605046461,-150.0,0.0001784,2]
[402210225,1768605046470,-5162.3,0.00017841,2]
[402210226,1768605046479,-1000.0,0.00017847,2]
[402210227,1768605046489,-800.0,0.00017847,2]
[402210228,1768605046497,-200.0,0.00017855,2]
[402210229,1768605046506,-200.0,0.00017856,2]
[402210230,1768605046515,-1000.0,0.00017856,2]
[402210231,1768605046524,-200.0,0.00017856,2]
[402210232,1768605046533,-200.0,0.00017856,2]
[402210233,1768605046542,-200.0,0.00017856,2]
[402210234,1768605046551,-500.0,0.00017863,2]
[402210235,1768605046560,-440.0,0.00017863,2]
[402210236,1768605046569,-1000.0,0.00017864,2]
[402210237,1768605046578,-1933.0,0.00017869,2]
[402210238,1768605046592,-1000.0,0.00017872,2]
[402210239,1768605046600,-1000.0,0.00017878,2]
[402210240,1768605046610,-1000.0,0.00017878,2]
[402210241,1768605046619,-2000.0,0.0001788,2]
[402210242,1768605046628,-5162.3,0.00017881,2]
[402210243,1768605046637,-157.79,0.00017883,2]
[402210244,1768605046646,-1000.0,0.00017885,2]
[402210245,1768605046657,-1933.0,0.00017894,2]
[402210246,1768605046666,-493.62329764,0.00017899,2]
[402210247,1768605046675,-493.62329763,0.000179,2]
[402210248,1768605046683,-848.26529208,0.000179,2]
[402210249,1768605046693,-10000.0,0.000179,2]
[402210250,1768605046702,-404.16750346,0.000179,2]
[402210251,1768605046711,-2100.0,0.000179,6]
[402210252,1768605046720,-493.62329763,0.000179,2]
[402210253,1768605046729,-3394.838176,0.000179,2]
[402210254,1768605046739,-6479.22197314,0.000179,2]
[402210255,1768605046748,-2469.12375321,0.000179,2]
[402210256,1768605046757,-2469.12375302,0.000179,2]
[402210257,1768605046766,-6152.07486229,0.000179,2]
[402210258,1768605046775,-2469.12375302,0.000179,2]
[402210259,1768605046783,-2469.12375302,0.000179,2]
[402210260,1768605046792,-2469.12375302,0.000179,2]
[402210261,1768605046801,-1933.0,0.00017907,2]
[402210262,1768605046810,-1000.0,0.00017916,2]
[402210263,1768605046819,-500.0,0.00017918,2]
[402210264,1768605046828,-440.0,0.00017918,2]
[402210265,1768605046838,-5162.3,0.00017921,2]
[402210266,1768605046847,-1000.0,0.00017922,2]
[402210267,1768605046856,-2000.0,0.0001793,2]
[402210268,1768605046865,-150.0,0.00017933,2]
[402210269,1768605046874,-1000.0,0.0001794,2]
[402210270,1768605046884,-1000.0,0.00017945,2]
[402210271,1768605046893,-1000.0,0.00017948,2]
[402210273,1768605046903,-1000.0,0.00017956,2]
[402210274,1768605046912,-1000.0,0.00017956,2]
[402210275,1768605046921,-1000.0,0.00017959,2]
[402210276,1768605046930,-5162.3,0.0001796,2]
[402210277,1768605046939,-194.72792766,0.00017962,2]
[402210278,1768605046948,-248.38210406,0.00017962,2]
[402210279,1768605046957,-640.24385345,0.00017962,2]
[402210280,1768605046966,-1000.0,0.00017963,2]
[402210281,1768605046975,-1000.0,0.00017966,2]
[402210282,1768605046983,-150.0,0.00017967,2]
[402210283,1768605046993,-500.0,0.0001797,2]
[402210284,1768605047002,-700.0,0.0001797,2]
[402210285,1768605047011,-500.0,0.0001797,2]
[402210286,1768605047020,-500.0,0.0001797,2]
[402210287,1768605047029,-700.0,0.0001797,2]
[402210288,1768605047038,-500.0,0.0001797,2]
[402210289,1768605047048,-700.0,0.0001797,2]